bitfinex/quotes_ETHUSD_20220226
["timestamp","ask_amount","ask_price","bid_price","bid_amount"]
[1645869275667,0.823,2754.4,2754.3,1.1986]
[1645869275865,1.91875396,2754.4,2754.3,0.00455047]
[1645869276265,2.21875396,2754.4,2754.3,0.00455047]
[1645869276866,2.21875396,2754.4,2753.9,3.6064]
[1645869276867,3.12730396,2754.4,2753.9,3.6064]
[1645869277068,3.12730396,2754.4,2754.2,0.0045505]
[1645869277270,4.12730396,2754.4,2754.2,0.0045505]
[1645869277468,3.12730396,2754.4,2754.2,0.0045505]
[1645869277667,4.12730396,2754.4,2754.2,0.0045505]
[1645869277868,4.12730396,2754.4,2753.9,3.6064]
[1645869278277,4.12730396,2754.4,2754.2,0.00455052]
[1645869278669,3.5,2754.3,2754.2,0.00455052]
[1645869278933,4.3858,2754.3,2754.2,0.00455052]
[1645869279228,0.90864,2754.1,2753.8,2.98729266]
[1645869279427,0.90864,2754.1,2753.7,3.46840493]
[1645869279428,5.29446,2754.0,2753.7,3.46840493]
[1645869279629,6.59446,2754.0,2753.7,3.46840493]
[1645869279928,7.752601,2754.0,2753.7,3.46840493]
[1645869280129,4.252601,2754.0,2753.7,3.46840493]
[1645869280329,9.569901,2754.0,2753.7,3.4502]
[1645869280531,1.3628,2753.9,2753.7,3.4502]
[1645869280729,1.3628,2753.9,2753.7,3.45475076]
[1645869280730,0.523,2753.8,2753.7,3.45475076]
[1645869280933,4.3858,2753.8,2753.7,0.00455076]
[1645869281235,4.3858,2753.8,2753.3,0.01820577]
[1645869281236,1.81775,2753.7,2753.3,0.01820577]
[1645869281433,16.4879799,2753.6,2753.3,0.01820577]
[1645869281631,18.6057399,2753.6,2753.1,0.00299266]
[1645869281831,1.0,2753.4,2752.9,4.31999266]
[1645869282030,0.523,2753.3,2752.9,4.317]
[1645869282231,0.523,2753.3,2752.9,1.1472]
[1645869283264,6.6793869,2753.3,2752.9,1.1472]
[1645869283464,6.6793869,2753.3,2752.3,0.00299266]
[1645869283465,22.9658,2753.2,2752.3,0.00299266]
[1645869283664,10.1696634,2752.9,2752.3,0.00299266]
[1645869283870,1.0,2752.7,2752.3,0.00299266]
[1645869284066,0.523,2752.6,2752.2,1.208]
[1645869284267,0.823,2752.6,2752.5,0.00454821]
[1645869284467,1.03169047,2752.6,2752.5,0.00454821]
[1645869284670,2.03169047,2752.6,2752.5,0.00454821]
[1645869284868,3.84999047,2752.6,2752.5,0.00454821]
[1645869285271,4.84999047,2752.6,2752.2,1.208]
[1645869285468,4.84999047,2752.6,2752.4,0.00454823]
[1645869286315,6.66824047,2752.6,2752.4,0.00454823]
[1645869286519,6.66824047,2752.6,2752.2,1.208]
[1645869286715,1.81825,2752.5,2752.2,1.208]
[1645869286915,1.81825,2752.5,2752.4,0.00454826]
[1645869286916,1.20913,2752.5,2752.4,0.00454826]
[1645869287115,1.73213,2752.5,2752.4,0.00454826]
[1645869287315,0.39432241,2752.5,2752.4,0.00454826]
[1645869287815,0.39432241,2752.5,2752.2,1.208]
[1645869288015,0.39432241,2752.5,2752.3,1.16079636]
[1645869288318,0.39432241,2752.5,2752.2,1.208]
[1645869288720,1.30345241,2752.5,2752.2,1.208]
[1645869289126,1.30345241,2752.5,2752.2,2.41401954]
[1645869289923,1.30345241,2752.5,2752.2,1.20942368]
[1645869290174,1.30345241,2752.5,2752.2,1.208]
[1645869290376,1.30345241,2752.5,2752.2,1.20942368]
[1645869291176,1.30345241,2752.5,2752.2,1.208]
[1645869291576,1.30345241,2752.5,2752.2,1.21254209]
[1645869292378,1.30345241,2752.5,2752.2,1.208]
[1645869292780,1.30345241,2752.5,2752.2,1.21254209]
[1645869293580,2.21249241,2752.5,2752.2,1.21254209]
[1645869293822,2.51249241,2752.5,2752.2,1.208]
[1645869294029,2.51249241,2752.5,2752.2,1.21254209]
[1645869294226,0.02496164,2752.4,2752.2,1.21254209]
[1645869294628,0.54796164,2752.4,2752.2,1.21254209]
[1645869294831,0.54796164,2752.4,2752.2,1.208]
[1645869295031,4.04796164,2752.4,2752.2,2.18897]
[1645869295227,1.54796164,2752.4,2752.2,2.18897]
[1645869295427,1.54796164,2752.4,2751.9,6.07259266]
[1645869295428,3.8628,2752.3,2751.9,0.00299266]
[1645869295631,7.4188,2752.2,2751.6,0.00299266]
[1645869295826,7.4188,2752.2,2751.1,2.72600433]
[1645869295827,0.90944,2751.8,2751.1,2.72600433]
[1645869296028,0.523,2751.7,2751.1,1.19299266]
[1645869296230,0.523,2751.7,2751.3,1.11387757]
[1645869296427,0.523,2751.7,2751.1,1.19299266]
[1645869296628,0.523,2751.7,2751.2,1.53596447]
[1645869297032,0.523,2751.7,2751.1,1.19]
[1645869297229,0.9093,2751.5,2751.1,1.19]
[1645869297431,0.523,2751.4,2751.1,1.19]
[1645869297672,0.523,2751.4,2751.3,0.0014211]
[1645869298075,4.323,2751.4,2751.3,0.0014211]
[1645869298272,2.35558519,2751.4,2751.3,0.0014211]
[1645869298472,2.35558519,2751.4,2751.1,1.19]
[1645869298473,1.0,2751.3,2751.1,1.19]
[1645869298673,1.43252,2751.2,2751.1,1.19]
[1645869299078,1.43252,2751.2,2751.0,2.7971]
[1645869299279,1.43252,2751.2,2750.8,0.00568547]
[1645869299579,2.88332469,2751.2,2750.8,0.00568547]
[1645869299780,2.88332469,2751.2,2750.7,0.00299266]
[1645869299781,0.9095564,2751.1,2750.7,0.00299266]
[1645869299977,0.9095564,2751.1,2750.9,0.00453552]
[1645869299978,0.523,2751.0,2750.9,0.00453552]
[1645869300380,1.39882646,2751.0,2750.9,0.00453552]
[1645869300780,1.03602646,2751.0,2750.9,0.00453552]
[1645869300980,1.03602646,2751.0,2750.3,0.00299266]
[1645869300981,1.9095,2750.9,2750.3,0.00299266]
[1645869301181,0.523,2750.8,2750.3,0.00299266]
[1645869301425,0.523,2750.8,2750.3,1.10845185]
[1645869302128,0.523,2750.8,2750.2,0.13627945]
[1645869302325,1.8193,2750.7,2750.4,0.00453254]
[1645869302525,2.3423,2750.7,2750.4,0.00453254]
[1645869303330,3.25195,2750.7,2750.2,0.13627945]
[1645869303532,3.76929332,2750.7,2750.4,0.00453254]
[1645869303734,2.7292,2750.6,2750.4,0.00453254]
[1645869303931,0.523,2750.5,2750.4,0.00453254]
[1645869304531,0.90975,2750.4,2750.2,0.13328679]
[1645869304734,1.73275,2750.4,2750.3,0.0045326]
[1645869304935,1.73275,2750.4,2749.9,0.01813311]
[1645869304936,4.0,2750.3,2749.9,0.01813311]
[1645869305175,6.8958,2750.1,2749.9,0.01813311]
[1645869305374,0.8858,2750.0,2749.9,0.01813311]
[1645869305878,0.8858,2750.0,2749.4,0.00299266]
[1645869306080,1.91005,2749.8,2749.2,1.44676537]
[1645869306286,0.523,2749.7,2749.3,0.00299266]
[1645869306579,0.523,2749.7,2749.2,1.44377271]
[1645869306980,0.523,2749.7,2749.1,3.2252]
[1645869307180,1.43301,2749.7,2749.3,0.0013307]
[1645869307382,1.075429,2749.7,2749.3,0.0013307]
[1645869307579,0.523,2749.6,2749.3,0.0013307]
[1645869308180,0.523,2749.6,2749.1,3.2252]
[1645869308379,2.34303,2749.6,2749.1,3.2252]
[1645869308582,4.16318,2749.6,2749.1,3.2252]
[1645869308848,4.16318,2749.6,2748.8,0.00299266]
[1645869308849,0.3628,2749.3,2748.8,0.00299266]
[1645869309052,0.3628,2749.3,2748.6,0.00299266]
[1645869309053,15.093,2749.2,2748.6,0.00299266]
[1645869309252,0.523,2749.2,2748.3,0.00299266]
[1645869309452,0.523,2749.2,2748.1,7.0]
[1645869309656,0.523,2749.6,2748.4,5.04149491]
[1645869309852,0.523,2749.6,2748.5,3.5]
[1645869310058,0.523,2749.9,2748.5,5.63576914]
[1645869310252,0.523,2749.9,2748.9,5.0]
[1645869310452,6.533,2750.7,2749.1,0.3628]
[1645869310453,0.523,2750.2,2749.1,0.3628]
[1645869310651,0.02498309,2750.0,2749.2,1.47185112]
[1645869310852,0.02498309,2750.0,2749.2,1.47484378]
[1645869311653,0.523,2750.6,2749.4,0.3628]
[1645869311856,2.0,2751.1,2749.6,0.3628]
[1645869311857,0.523,2751.1,2749.6,0.3628]
[1645869312154,0.523,2751.1,2749.8,0.3628]
[1645869312155,0.90947,2750.9,2749.8,0.3628]
[1645869312354,1.43247,2750.9,2749.9,0.00299266]
[1645869312590,1.0,2750.5,2749.9,0.00299266]
[1645869312776,1.0,2750.5,2749.7,2.89339266]
[1645869313177,1.0,2750.5,2750.4,1.33018902]
[1645869313377,1.90962,2750.5,2750.4,1.33018902]
[1645869313577,1.90962,2750.5,2750.1,0.00452852]
[1645869313984,0.90962,2750.5,2750.1,0.00452852]
[1645869314281,0.90962,2750.5,2749.8,0.00299266]
[1645869314484,0.3,2750.6,2750.2,0.00452847]
[1645869314782,1.523,2750.7,2750.4,1.29252905]
[1645869314783,0.823,2750.7,2750.4,1.29252905]
[1645869314983,1.01993289,2750.7,2750.2,0.00452847]
[1645869315381,1.01993289,2750.7,2749.8,0.00299266]
[1645869315584,1.01993289,2750.7,2750.2,0.00452864]
[1645869316617,2.83925289,2750.7,2749.8,0.00299266]
[1645869316816,0.3628,2750.6,2750.2,0.00452864]
[1645869317021,0.3628,2750.6,2749.9,0.01811629]
[1645869317022,11.4328,2750.4,2749.9,0.01811629]
[1645869317217,0.3628,2750.2,2749.9,0.01811629]
[1645869317416,18.126,2750.3,2749.9,0.01811629]
[1645869317417,1.27279,2750.0,2749.9,0.01811629]
[1645869317617,1.79579,2750.0,2749.9,0.01811629]
[1645869317819,1.79579,2750.0,2749.7,0.00299266]
[1645869317820,0.90999,2749.9,2749.5,4.55519266]
[1645869318015,0.523,2749.8,2749.5,4.5522]
[1645869318817,1.0,2749.7,2749.5,5.6343124]
[1645869319021,0.523,2749.6,2749.5,4.5522]
[1645869319220,0.523,2749.6,2749.5,3.41301058]
[1645869320068,0.523,2749.6,2749.3,1.1014968]
[1645869320266,1.523,2749.6,2749.2,2.9505]
[1645869320470,1.523,2749.6,2749.4,1.22332822]
[1645869320966,2.79575,2749.6,2749.4,0.00452822]
[1645869321174,2.18347,2749.4,2749.0,0.0181156]
[1645869321370,1.0,2749.1,2748.8,0.00299266]
[1645869321567,0.523,2749.0,2748.6,0.04035806]
[1645869321766,5.59609,2749.0,2748.6,0.04035806]
[1645869321967,5.59609,2749.0,2748.3,0.04206333]
[1645869321968,0.3628,2748.9,2748.3,0.04206333]
[1645869322166,1.0,2748.7,2748.3,0.04206333]
[1645869322371,10.9188,2748.6,2748.3,0.04206333]
[1645869322576,10.9188,2748.6,2747.4,7.51]
[1645869322577,0.3628,2748.2,2748.0,0.00299266]
[1645869322768,0.3628,2748.2,2747.7,3.41599266]
[1645869322769,5.3858,2748.1,2747.7,3.41599266]
[1645869322972,1.2735,2748.0,2747.5,0.00299266]
[1645869323170,2.70731,2747.9,2747.4,0.06]
[1645869323379,1.3628,2747.8,2747.5,3.413]
[1645869323573,1.3628,2747.8,2747.6,25.44147233]
[1645869323574,0.8858,2747.7,2747.6,25.44147233]
[1645869324341,0.523,2747.7,2747.6,25.39274458]
[1645869324539,1.43373,2747.7,2747.6,25.39274458]
[1645869325039,1.43373,2747.7,2747.6,25.39147233]
[1645869325340,1.79653,2747.7,2747.6,25.39147233]
[1645869325542,1.43373,2747.7,2747.6,25.39147233]
[1645869326737,1.79653,2747.7,2747.6,25.39147233]
[1645869326938,12.86653,2747.7,2747.6,25.39147233]
[1645869327141,17.36653,2747.7,2747.6,8.99500913]
[1645869327339,27.07853,2747.7,2747.6,8.99500913]
[1645869327643,27.07853,2747.7,2747.3,0.00299266]
[1645869327644,11.07,2747.5,2747.3,0.00299266]
[1645869327823,2.184929,2747.1,2746.4,0.00299266]
[1645869328026,0.8858,2747.0,2746.4,0.00299266]
[1645869328225,2.122,2746.9,2746.4,0.00299266]
[1645869328525,11.593,2746.8,2746.3,3.14559266]
[1645869328724,11.4328,2746.7,2746.3,3.14559266]
[1645869328928,11.4328,2746.7,2746.3,3.1426]
[1645869328929,0.8858,2746.6,2746.3,3.1426]
[1645869329427,1.0,2746.4,2746.3,3.1426]
[1645869329626,1.523,2746.4,2746.3,3.1426]
[1645869329827,1.0041835,2746.4,2746.3,3.1426]
[1645869330032,0.7041835,2746.4,2746.3,3.1426]
[1645869330331,0.45086814,2747.1,2746.3,3.1426]
[1645869330526,0.523,2747.0,2746.3,3.29119266]
[1645869330731,0.523,2747.0,2746.3,3.65399266]
[1645869331227,0.523,2747.0,2746.5,0.00451856]
[1645869331434,0.523,2747.0,2746.6,0.1456]
[1645869331837,1.43381,2747.0,2746.6,0.1456]
[1645869332535,1.43381,2747.0,2746.3,3.14559266]
[1645869332536,1.43381,2747.0,2746.7,0.00451848]
[1645869333339,1.43381,2747.0,2746.5,0.1456]
[1645869333340,0.523,2747.0,2746.5,0.1456]
[1645869333538,1.2976,2747.1,2746.5,0.1456]
[1645869333736,0.2976,2747.1,2746.7,0.00451845]
[1645869334141,0.2976,2747.1,2746.9,5.3628]
[1645869334338,0.0001,2747.1,2747.0,0.5084]
[1645869334538,0.0001,2747.1,2747.0,6.8766]
[1645869334739,0.0001,2747.1,2747.0,3.37959266]
[1645869334939,0.0001,2747.1,2747.0,3.3766]
[1645869335176,0.0001,2747.1,2747.0,6.8766]
[1645869335581,0.0001,2747.1,2747.0,10.6571]
[1645869336175,0.0001,2747.1,2747.0,14.1571]
[1645869336776,0.0001,2747.1,2747.0,10.6571]
[1645869337177,0.0001,2747.1,2747.0,14.35039996]
[1645869337777,0.0001,2747.1,2747.0,14.6801]
[1645869337978,0.0001,2747.1,2747.0,10.09369673]
[1645869338178,0.0001,2747.1,2747.0,6.59369673]
[1645869338582,0.0001,2747.1,2747.0,20.8957]
[1645869339237,0.0001,2747.1,2747.0,21.8957]
[1645869340138,0.0001354,2747.1,2747.0,21.8957]
[1645869340536,0.0001354,2747.1,2747.0,21.243]
[1645869340738,0.0001354,2747.1,2747.0,24.2181]
[1645869342138,0.0001354,2747.1,2747.0,25.75605516]
[1645869342339,0.96494367,2749.0,2747.5,0.3628]
[1645869342592,0.91015,2749.0,2747.7,0.3628]
[1645869342781,0.91015,2749.0,2747.7,5.6628]
[1645869342982,0.523,2749.2,2747.8,0.00300647]
[1645869343185,0.523,2749.2,2747.9,0.3628]
[1645869343382,0.523,2749.2,2748.0,0.00300647]
[1645869343582,0.1820241,2749.3,2748.2,0.00365301]
[1645869343788,2.85206093,2749.8,2748.2,0.00365301]
[1645869343789,0.19960424,2749.7,2748.2,0.00365301]
[1645869343986,0.19960424,2749.7,2748.3,0.3628]
[1645869344185,2.0,2749.8,2748.4,0.00300647]
[1645869344386,0.90998,2749.5,2748.5,0.3628]
[1645869344588,0.90998,2749.5,2748.6,3.29980647]
[1645869344786,0.90998,2749.5,2748.8,0.00365221]
[1645869345286,1.20998,2749.5,2748.8,0.00365221]
[1645869345485,1.82029,2749.3,2748.8,0.00365221]
[1645869345886,0.05575,2749.2,2749.0,0.00365194]
[1645869346089,0.57875,2749.2,2749.0,0.00365194]
[1645869346341,0.87875,2749.2,2749.0,0.00365194]
[1645869346538,1.04059436,2749.2,2749.0,0.00365194]
[1645869347337,1.04059436,2749.2,2749.0,0.00382149]
[1645869347737,0.74059436,2749.2,2749.0,0.00382149]
[1645869348042,0.91001,2749.4,2749.0,0.00382149]
[1645869348043,1.21001,2749.4,2749.0,0.00382149]
[1645869348245,0.3,2749.3,2749.0,0.00382149]
[1645869348646,0.3,2749.6,2749.0,0.00382149]
[1645869348853,0.1552509,2749.9,2749.0,0.00382149]
[1645869349046,1.05573,2750.2,2749.7,1.28231391]
[1645869349448,0.15209331,2750.3,2749.1,3.86580647]
[1645869349645,0.15209331,2750.3,2749.2,0.00300647]
[1645869349846,0.15209331,2750.3,2749.2,0.00682768]
[1645869350278,0.02517027,2749.3,2749.2,0.00682768]
[1645869350479,0.02517027,2749.3,2749.2,0.00382121]
[1645869351481,0.02517027,2749.3,2749.1,1.12681538]
[1645869352481,0.02517027,2749.3,2749.1,1.13060823]
[1645869353483,0.02517027,2749.3,2749.1,1.13061159]
[1645869354337,0.02517027,2749.3,2749.1,1.12681538]
[1645869354738,0.12517027,2749.3,2749.1,1.13061109]
[1645869355640,0.12517027,2749.3,2749.1,1.12681538]
[1645869355839,0.12517027,2749.3,2749.1,1.13061109]
[1645869356839,0.12517027,2749.3,2749.1,1.12681538]
[1645869357886,0.05577,2750.6,2749.3,0.31612529]
[1645869357887,0.22505778,2750.6,2749.3,0.31612529]
[1645869358082,3.37394824,2750.9,2749.4,0.3628]
[1645869358083,0.05578,2750.9,2749.4,0.3628]
[1645869358282,0.05578,2750.9,2749.5,8.3733]
[1645869358583,0.05578,2750.9,2749.7,0.3628]
[1645869358786,0.4186,2751.3,2750.1,0.9092892]
[1645869358988,0.0558,2751.3,2750.2,4.7031]
[1645869359193,0.20789331,2751.3,2750.2,8.2459]
[1645869359388,0.15209331,2751.3,2750.2,4.7459]
[1645869359992,0.3628,2751.1,2750.6,1.25518853]
[1645869360193,0.05584,2751.1,2750.2,4.7459]
[1645869360591,0.32577676,2751.3,2750.3,3.5]
[1645869360592,0.15209331,2751.3,2750.3,3.5]
[1645869360790,0.15209331,2751.3,2750.4,3.0356]
[1645869361332,0.15209331,2751.3,2750.5,1.27175639]
[1645869361535,0.15209331,2751.3,2750.4,3.0356]
[1645869361738,0.3628,2751.0,2750.2,4.7459]
[1645869361935,0.3628,2750.8,2750.2,3.5428]
[1645869362133,0.3628,2750.6,2750.1,0.13819997]
[1645869362534,0.90968,2750.4,2750.1,0.13819997]
[1645869362734,1.20968,2750.4,2750.1,0.13819997]
[1645869363134,0.90968,2750.4,2750.1,0.13819997]
[1645869363536,1.20968,2750.4,2750.1,0.13819997]
[1645869363735,1.40051197,2750.4,2750.1,0.13819997]
[1645869364140,0.90968,2750.4,2750.1,0.13819997]
[1645869366487,0.3,2750.5,2750.1,0.13819997]
[1645869366686,0.90959,2750.7,2750.1,0.13819997]
[1645869366687,0.3,2750.7,2750.1,0.13819997]
[1645869366889,0.3,2750.8,2750.5,1.26920114]
[1645869367088,0.30105185,2750.4,2750.1,0.13819997]
[1645869368287,0.30105185,2750.4,2750.2,1.35939573]
[1645869369030,0.02525225,2751.2,2750.3,7.0]
[1645869369233,0.00433611,2751.5,2750.4,4.7199]
[1645869369432,0.00433611,2751.5,2750.5,3.1089]
[1645869369630,0.00433611,2751.5,2750.5,3.2543]
[1645869370034,0.02540036,2751.6,2750.5,3.2543]
[1645869370231,0.00433685,2751.5,2750.6,0.1453]
[1645869370829,0.00433685,2751.5,2751.3,1.11905012]
[1645869371229,0.02540036,2751.6,2751.3,1.11905012]
[1645869371434,0.00433719,2751.5,2751.3,1.11905012]
[1645869371629,0.00433719,2751.5,2750.6,3.3747]
[1645869372232,0.00433719,2751.5,2750.6,4.2838408]
[1645869372432,0.02540036,2751.6,2750.6,4.2838408]
[1645869372680,0.02540036,2751.6,2751.2,1.06162083]
[1645869372887,0.00418597,2751.5,2751.2,1.06162083]
[1645869373686,0.02540036,2751.6,2751.2,1.06162083]
[1645869373889,0.00418626,2751.5,2751.2,1.06162083]
[1645869374892,0.02540036,2751.6,2750.6,3.3747]
[1645869375089,0.00279279,2751.5,2750.6,3.3747]
[1645869375290,0.00279279,2751.5,2750.6,0.1453]
[1645869375889,0.00279279,2751.5,2751.2,1.1427339]
[1645869376089,0.02540036,2751.6,2751.2,1.1427339]
[1645869376331,0.00421009,2751.5,2751.2,1.1427339]
[1645869377338,0.02540036,2751.6,2751.2,1.1427339]
[1645869377534,0.00421038,2751.5,2751.3,1.1495]
[1645869378537,0.02540036,2751.6,2751.3,6.16394]
[1645869378740,0.00421036,2751.5,2751.3,5.0376]
[1645869378943,0.00421036,2751.5,2751.3,1.1495]
[1645869379145,0.00421036,2751.5,2750.5,3.2389]
[1645869379344,0.3628,2751.2,2750.5,3.2389]
[1645869379544,3.5,2751.1,2750.5,3.2389]
[1645869379746,0.523,2751.0,2750.5,3.2389]
[1645869379949,0.523,2751.0,2750.5,4.30434384]
[1645869380177,0.523,2751.0,2750.5,3.2389]
[1645869382779,0.90951,2750.9,2750.5,3.2389]
[1645869383378,0.3,2751.0,2750.5,3.2389]
[1645869383578,0.4691344,2751.2,2750.5,3.2389]
[1645869383826,0.3,2751.2,2750.5,3.2389]
[1645869384033,3.11892,2751.3,2750.5,3.2389]
[1645869384234,0.02174312,2751.0,2750.5,3.2389]
[1645869385035,1.84092312,2751.0,2750.5,3.2389]
[1645869385241,0.523,2750.9,2750.5,3.2389]
[1645869385436,0.823,2750.9,2750.5,3.2389]
[1645869385637,1.35828367,2750.9,2750.4,1.25]
[1645869385836,0.3628,2750.8,2750.4,1.25]
[1645869386036,2.22122957,2750.7,2750.1,0.1454]
[1645869386238,0.8858,2750.6,2750.1,0.1454]
[1645869386537,1.1858,2750.6,2750.1,0.1454]
[1645869386737,1.36865894,2750.6,2750.1,0.1454]
[1645869387137,1.73269,2750.6,2750.1,0.1454]
[1645869387336,0.823,2750.6,2750.1,0.0954]
[1645869388379,0.38454312,2751.0,2750.1,3.9582]
[1645869388380,0.02174312,2751.0,2750.1,3.9582]
[1645869388577,0.02174312,2751.0,2750.2,1.5271]
[1645869388781,0.02174312,2751.0,2750.2,1.8271]
[1645869389384,0.60038908,2751.6,2750.2,1.8271]
[1645869389584,0.00395443,2751.5,2750.2,1.8271]
[1645869389884,0.91329443,2751.5,2750.2,1.8271]
[1645869390084,1.21329443,2751.5,2750.2,1.8271]
[1645869390482,1.20934,2751.5,2750.2,1.8271]
[1645869390684,1.20934,2751.5,2750.4,0.3628]
[1645869390887,1.21329397,2751.5,2750.4,0.3628]
[1645869391088,1.21329397,2751.5,2751.0,1.12620184]
[1645869391747,1.20934,2751.5,2751.0,1.12620184]
[1645869391949,1.21329438,2751.5,2751.0,1.12620184]
[1645869392348,1.21329438,2751.5,2750.6,1.2152]
[1645869392549,0.90941,2751.3,2750.6,1.2152]
[1645869393253,1.27221,2751.3,2750.6,1.2152]
[1645869393453,1.57221,2751.3,2750.6,1.2152]
[1645869393655,2.2821106,2751.3,2750.6,1.2152]
[1645869393853,3.79227053,2751.3,2750.6,1.2152]
[1645869394055,1.3588944,2751.2,2750.6,1.2152]
[1645869394255,5.5216944,2751.2,2750.6,1.2152]
[1645869394456,1.7216944,2751.1,2750.6,1.2152]
[1645869394657,1.7216944,2751.1,2750.5,3.3777]
[1645869394658,4.023,2751.0,2750.5,3.3777]
[1645869394856,6.84013571,2751.0,2750.5,3.3777]
[1645869395297,1.3588944,2750.9,2750.5,3.3777]
[1645869395498,0.523,2750.8,2750.5,3.3777]
[1645869395897,0.90962,2750.7,2750.5,3.3777]
[1645869396098,0.523,2750.6,2750.5,3.3777]
[1645869397197,0.47882954,2750.8,2750.5,3.3777]
[1645869397397,1.00182954,2750.8,2750.5,3.3777]
[1645869397597,0.70182954,2750.8,2750.5,3.3777]
[1645869397897,0.523,2750.8,2750.5,3.3777]
[1645869398100,0.523,2750.8,2750.0,1.2465]
[1645869398101,1.43257,2750.8,2750.0,1.2465]
[1645869398598,0.523,2750.8,2750.0,1.2465]
[1645869399245,0.54156493,2750.8,2750.0,1.2465]
[1645869399647,0.54156493,2750.8,2750.5,1.05203437]
[1645869399848,0.01856493,2750.8,2750.5,1.05203437]
[1645869402599,0.01856493,2750.8,2750.0,1.2465]
[1645869402794,1.37939046,2750.8,2750.0,1.2465]
[1645869402994,0.523,2750.7,2750.0,1.2465]
[1645869404196,0.90964,2750.5,2750.0,1.2465]
[1645869404397,1.20964,2750.5,2750.0,1.2465]
[1645869405397,1.73264,2750.5,2750.0,1.2465]
[1645869406003,1.91263305,2750.5,2750.0,1.2465]
[1645869406638,2.16959858,2750.5,2750.0,1.2465]
[1645869407944,2.06389858,2750.5,2750.0,1.2465]
[1645869409145,2.42669858,2750.5,2750.0,1.24523441]
[1645869409345,2.44514963,2750.5,2750.0,1.24523441]
[1645869410384,2.08234963,2750.5,2750.0,1.24523441]
[1645869410588,0.31845105,2750.5,2750.0,1.24523441]
[1645869410786,0.01845105,2750.5,2750.0,1.24523441]
[1645869411493,0.01845105,2750.5,2750.2,1.02551103]
[1645869414142,2.03315993,2750.8,2750.2,1.02551103]
[1645869414341,0.97426553,2750.8,2750.0,1.24523441]
[1645869414541,2.33315993,2750.8,2750.0,1.24523441]
[1645869414742,0.97426553,2750.8,2750.0,1.24523441]
[1645869415544,1.18905544,2750.8,2750.0,1.24523441]
[1645869416148,1.12505762,2750.8,2750.0,1.24523441]
[1645869416841,0.97426553,2750.8,2750.0,1.24523441]
[1645869417682,1.3588944,2750.7,2750.0,1.24523441]
[1645869417980,1.18933951,2750.8,2750.0,1.24523441]
[1645869417981,0.9096,2750.6,2750.0,1.24523441]
[1645869418182,1.2096,2750.6,2750.0,1.24523441]
[1645869424346,0.01845105,2750.5,2749.7,4.70410914]
[1645869424545,0.01845105,2750.5,2749.7,4.45410914]
[1645869425591,0.01845105,2750.5,2749.8,1.53712018]
[1645869427993,0.01845105,2750.5,2750.3,1.43207972]
[1645869429841,2.82910455,2750.8,2750.3,1.43207972]
[1645869430041,1.82910455,2750.8,2750.3,1.43207972]
[1645869430240,1.82910455,2750.8,2750.3,1.43123888]
[1645869430241,2.82910455,2750.8,2750.3,1.43123888]
[1645869430444,1.82910455,2750.8,2750.3,1.43123888]
[1645869430644,2.82910455,2750.8,2750.3,1.43123888]
[1645869430843,1.82910455,2750.8,2750.3,1.43123888]
[1645869431246,1.3588944,2750.7,2750.3,1.43123888]
[1645869431745,2.12910455,2750.8,2750.3,1.43123888]
[1645869432146,1.3588944,2750.7,2750.3,1.43123888]
[1645869433087,1.3588944,2750.6,2750.0,1.2041651]
[1645869433489,1.3588944,2750.3,2750.0,1.2041651]
[1645869433688,0.523,2750.2,2750.0,1.2041651]
[1645869433888,2.1818944,2750.2,2749.7,3.1211]
[1645869434092,0.823,2750.2,2749.7,3.1211]
[1645869434691,2.1818944,2750.2,2749.7,3.1211]
[1645869434894,0.90982,2750.1,2749.7,3.1211]
[1645869435092,1.43282,2750.1,2749.7,3.1211]
[1645869435291,1.79562,2750.1,2749.7,3.1211]
[1645869435490,5.29562,2750.1,2749.7,3.1211]
[1645869435691,5.29562,2750.1,2749.5,1.1445]
[1645869435692,0.15126553,2750.0,2749.5,1.1445]
[1645869435896,0.15126553,2750.0,2749.3,0.32066231]
[1645869435897,1.7216944,2749.8,2749.3,0.32066231]
[1645869436094,0.523,2749.7,2749.3,0.32066231]
[1645869436339,0.523,2749.7,2749.3,0.31612529]
[1645869436541,0.523,2749.7,2749.3,0.32066185]
[1645869436745,0.67426553,2749.7,2749.3,0.32066185]
[1645869437545,0.67426553,2749.7,2749.3,0.31612529]
[1645869437746,0.67426553,2749.7,2749.3,0.3206618]
[1645869438350,4.17426553,2749.7,2749.3,0.3206618]
[1645869438748,6.53315993,2749.7,2749.3,0.31612529]
[1645869438948,1.09487503,2749.6,2749.3,0.3202932]
[1645869439149,1.43302,2749.5,2749.3,0.3202932]
[1645869439850,0.523,2749.5,2749.3,0.31612529]
[1645869440101,0.523,2749.5,2749.3,0.3202932]
[1645869440286,0.6,2749.6,2749.3,0.3202932]
[1645869440486,1.0,2749.7,2749.3,0.3202932]
[1645869440686,1.823,2749.8,2749.3,0.3202932]
[1645869440987,0.3,2749.8,2749.3,0.31612529]
[1645869441189,3.5955944,2750.2,2749.3,0.31612529]
[1645869441190,1.2367,2750.2,2749.3,0.31612529]
[1645869441393,1.2367,2750.2,2749.3,0.3202932]
[1645869441592,1.2367,2750.2,2749.4,1.53732886]
[1645869441995,1.2367,2750.2,2749.4,1.90012886]
[1645869442193,1.2367,2750.2,2750.1,1.10373206]
[1645869442594,0.2367,2750.2,2750.1,1.10373206]
[1645869443595,0.22884379,2750.2,2750.1,1.10373206]
[1645869443843,0.22884379,2750.2,2750.1,2.64069045]
[1645869444650,0.22884379,2750.2,2749.7,3.1034]
[1645869445843,0.22884379,2750.2,2749.8,1.44139694]
[1645869446043,1.13861379,2750.2,2749.8,1.44139694]
[1645869446845,1.13861379,2750.2,2749.7,3.1034]
[1645869447049,1.60876502,2750.2,2749.7,3.1034]
[1645869447256,1.60876502,2750.2,2749.3,0.31996034]
[1645869447454,1.27273,2749.8,2749.3,0.31996034]
[1645869447696,0.1057,2749.7,2749.3,0.31996034]
[1645869447895,0.6287,2749.7,2749.3,0.31996034]
[1645869448296,0.523,2749.7,2749.3,0.31612529]
[1645869448597,0.523,2749.7,2749.3,0.31728029]
[1645869448794,2.20993,2749.8,2749.3,0.31728029]